[Event "Titled Tuesday Blitz July 05 Late 2022"]
[White "Meshkovs, Nikita"]
[Black "Tari, Aryan"]
[WhiteFideId "11602740"]
[BlackFideId "1510045"]
[WhiteElo "2506"]
[BlackElo "2612"]
[Result "1/2-1/2"]
[Round "06"]
[TimeControl "180+1"]
[Date "2022.07.05"]
[WhiteClock "0:00:18"]
[BlackClock "0:00:14"]

1. c4 {[%clk 0:03:00]}  g6 {[%clk 0:02:55]} 2. Nc3 {[%clk 0:02:58]}  c5 {[%clk 0:02:55]} 3. g3 {[%clk 0:02:58]}  Bg7 {[%clk 0:02:55]} 4. Bg2 {[%clk 0:02:59]}  Nc6 {[%clk 0:02:55]} 5. a3 {[%clk 0:02:58]}  e6 {[%clk 0:02:51]} 6. Rb1 {[%clk 0:02:53]}  Nge7 {[%clk 0:02:49]} 7. b4 {[%clk 0:02:52]}  cxb4 {[%clk 0:02:48]} 8. axb4 {[%clk 0:02:52]}  a5 {[%clk 0:02:49]} 9. bxa5 {[%clk 0:02:39]}  Nxa5 {[%clk 0:02:42]} 10. Qa4 {[%clk 0:02:26]}  O-O {[%clk 0:02:40]} 11. Nf3 {[%clk 0:02:10]}  d5 {[%clk 0:02:29]} 12. cxd5 {[%clk 0:02:10]}  exd5 {[%clk 0:02:21]} 13. O-O {[%clk 0:02:10]}  Bf5 {[%clk 0:02:10]} 14. Ra1 {[%clk 0:01:31]}  d4 {[%clk 0:02:04]} 15. Nb5 {[%clk 0:01:20]}  d3 {[%clk 0:02:04]} 16. e4 {[%clk 0:01:18]}  Bd7 {[%clk 0:01:58]} 17. Rb1 {[%clk 0:01:14]}  Be6 {[%clk 0:01:27]} 18. Ng5 {[%clk 0:00:51]}  Bc4 {[%clk 0:01:16]} 19. Ba3 {[%clk 0:00:51]}  Qd7 {[%clk 0:01:10]} 20. Bh3 {[%clk 0:00:42]}  Qe8 {[%clk 0:01:03]} 21. Rfc1 {[%clk 0:00:42]}  h6 {[%clk 0:00:53]} 22. Rxc4 {[%clk 0:00:30]}  Nxc4 {[%clk 0:00:53]} 23. Qxc4 {[%clk 0:00:31]}  hxg5 {[%clk 0:00:50]} 24. Nc7 {[%clk 0:00:31]}  Qc6 {[%clk 0:00:28]} 25. Qxc6 {[%clk 0:00:28]}  Nxc6 {[%clk 0:00:29]} 26. Bxf8 {[%clk 0:00:20]}  Rxf8 {[%clk 0:00:30]} 27. Rxb7 {[%clk 0:00:20]}  Ne5 {[%clk 0:00:30]} 28. Bf1 {[%clk 0:00:09]}  g4 {[%clk 0:00:20]} 29. Nd5 {[%clk 0:00:09]}  Ra8 {[%clk 0:00:19]} 30. Rb1 {[%clk 0:00:07]}  Ra2 {[%clk 0:00:16]} 31. Rd1 {[%clk 0:00:08]}  Bh6 {[%clk 0:00:17]} 32. Nf4 {[%clk 0:00:05]}  Ra3 {[%clk 0:00:13]} 33. Kg2 {[%clk 0:00:05]}  Kg7 {[%clk 0:00:10]} 34. h3 {[%clk 0:00:05]}  g5 {[%clk 0:00:09]} 35. Nd5 {[%clk 0:00:04]}  gxh3+ {[%clk 0:00:09]} 36. Kxh3 {[%clk 0:00:05]}  g4+ {[%clk 0:00:10]} 37. Kg2 {[%clk 0:00:06]}  Nc4 {[%clk 0:00:08]} 38. Nf4 {[%clk 0:00:06]}  Bxf4 {[%clk 0:00:06]} 39. gxf4 {[%clk 0:00:06]}  Nd6 {[%clk 0:00:06]} 40. e5 {[%clk 0:00:06]}  Nf5 {[%clk 0:00:05]} 41. Rc1 {[%clk 0:00:07]}  Nh4+ {[%clk 0:00:03]} 42. Kg3 {[%clk 0:00:06]}  Nf3 {[%clk 0:00:04]} 43. Kxg4 {[%clk 0:00:04]}  Nxd2 {[%clk 0:00:04]} 44. Rd1 {[%clk 0:00:05]}  Ne4 {[%clk 0:00:04]} 45. Kf3 {[%clk 0:00:04]}  Nc5 {[%clk 0:00:03]} 46. Rd2 {[%clk 0:00:04]}  Ra4 {[%clk 0:00:03]} 47. Bxd3 {[%clk 0:00:03]}  Rd4 {[%clk 0:00:03]} 48. Ke3 {[%clk 0:00:04]}  Rd5 {[%clk 0:00:02]} 49. Bf5 {[%clk 0:00:05]}  Rxd2 {[%clk 0:00:02]} 50. Kxd2 {[%clk 0:00:06]}  f6 {[%clk 0:00:03]} 51. Ke3 {[%clk 0:00:06]}  Kf7 {[%clk 0:00:03]} 52. Kd4 {[%clk 0:00:06]}  Nb3+ {[%clk 0:00:03]} 53. Kd5 {[%clk 0:00:05]}  Ke7 {[%clk 0:00:04]} 54. Bc2 {[%clk 0:00:04]}  Nd2 {[%clk 0:00:04]} 55. Bd1 {[%clk 0:00:05]}  Nb1 {[%clk 0:00:03]} 56. Bg4 {[%clk 0:00:04]}  Nc3+ {[%clk 0:00:03]} 57. Kd4 {[%clk 0:00:05]}  Nb5+ {[%clk 0:00:02]} 58. Ke4 {[%clk 0:00:05]}  Nc7 {[%clk 0:00:03]} 59. Kf5 {[%clk 0:00:05]}  Ne8 {[%clk 0:00:03]} 60. Kg6 {[%clk 0:00:06]}  Kf8 {[%clk 0:00:02]} 61. Bd1 {[%clk 0:00:03]}  Ke7 {[%clk 0:00:02]} 62. Ba4 {[%clk 0:00:04]}  Nc7 {[%clk 0:00:03]} 63. exf6+ {[%clk 0:00:04]}  Kf8 {[%clk 0:00:03]} 64. Bc6 {[%clk 0:00:04]}  Ne6 {[%clk 0:00:03]} 65. Bd7 {[%clk 0:00:03]}  Nxf4+ {[%clk 0:00:04]} 66. Kg5 {[%clk 0:00:04]}  Nd3 {[%clk 0:00:04]} 67. f4 {[%clk 0:00:03]}  Nc5 {[%clk 0:00:05]} 68. Bf5 {[%clk 0:00:04]}  Nb3 {[%clk 0:00:05]} 69. Be4 {[%clk 0:00:04]}  Nc5 {[%clk 0:00:06]} 70. Kf5 {[%clk 0:00:05]}  Nb7 {[%clk 0:00:05]} 71. Bd5 {[%clk 0:00:05]}  Nd6+ {[%clk 0:00:05]} 72. Ke5 {[%clk 0:00:06]}  Nb5 {[%clk 0:00:06]} 73. Be4 {[%clk 0:00:06]}  Nc7 {[%clk 0:00:06]} 74. Bd3 {[%clk 0:00:06]}  Ne8 {[%clk 0:00:07]} 75. Bb5 {[%clk 0:00:06]}  Nc7 {[%clk 0:00:07]} 76. Bc6 {[%clk 0:00:06]}  Kf7 {[%clk 0:00:07]} 77. Bd5+ {[%clk 0:00:06]}  Nxd5 {[%clk 0:00:06]} 78. Kxd5 {[%clk 0:00:07]}  Kxf6 {[%clk 0:00:07]} 79. Ke4 {[%clk 0:00:08]}  Ke6 {[%clk 0:00:08]} 80. f5+ {[%clk 0:00:09]}  Kf6 {[%clk 0:00:08]} 81. Kf4 {[%clk 0:00:10]}  Kf7 {[%clk 0:00:09]} 82. Ke5 {[%clk 0:00:11]}  Ke7 {[%clk 0:00:10]} 83. f6+ {[%clk 0:00:12]}  Kf7 {[%clk 0:00:10]} 84. Kf5 {[%clk 0:00:13]}  Kf8 {[%clk 0:00:11]} 85. Kg6 {[%clk 0:00:14]}  Kg8 {[%clk 0:00:12]} 86. Kg5 {[%clk 0:00:14]}  Kf7 {[%clk 0:00:12]} 87. Kf5 {[%clk 0:00:15]}  Kf8 {[%clk 0:00:13]} 88. Ke6 {[%clk 0:00:16]}  Ke8 {[%clk 0:00:13]} 89. f7+ {[%clk 0:00:17]}  Kf8 {[%clk 0:00:14]} 90. Kf6 {[%clk 0:00:18]} 1/2-1/2


[Site "https://www.chess.com"]

[Event "Titled Tuesday Blitz July 05 Late 2022"]
[White "Pakleza, Zbigniew"]
[Black "Matsuura, Frederico"]
[WhiteFideId "1119290"]
[BlackFideId "2107848"]
[WhiteElo "2467"]
[BlackElo "2302"]
[Result "1-0"]
[Round "06"]
[TimeControl "180+1"]
[Date "2022.07.05"]
[WhiteClock "0:00:36"]
[BlackClock "0:01:18"]

1. d4 {[%clk 0:03:00]}  e6 {[%clk 0:02:57]} 2. Nf3 {[%clk 0:03:00]}  d5 {[%clk 0:02:57]} 3. Bf4 {[%clk 0:02:59]}  Bd6 {[%clk 0:02:51]} 4. Bg3 {[%clk 0:02:56]}  Nf6 {[%clk 0:02:50]} 5. Nbd2 {[%clk 0:02:55]}  O-O {[%clk 0:02:46]} 6. e3 {[%clk 0:02:53]}  Ne4 {[%clk 0:02:46]} 7. Nxe4 {[%clk 0:02:48]}  dxe4 {[%clk 0:02:46]} 8. Nd2 {[%clk 0:02:48]}  f5 {[%clk 0:02:41]} 9. c3 {[%clk 0:02:45]}  Qe7 {[%clk 0:02:35]} 10. Nc4 {[%clk 0:02:40]}  Nd7 {[%clk 0:02:26]} 11. Qb3 {[%clk 0:02:30]}  Kh8 {[%clk 0:02:24]} 12. Bxd6 {[%clk 0:02:08]}  cxd6 {[%clk 0:02:22]} 13. Qa3 {[%clk 0:02:08]}  f4 {[%clk 0:01:57]} 14. Qxd6 {[%clk 0:02:02]}  Qg5 {[%clk 0:01:55]} 15. exf4 {[%clk 0:01:55]}  Rxf4 {[%clk 0:01:53]} 16. Qxe6 {[%clk 0:01:11]}  Rf8 {[%clk 0:01:43]} 17. Qd6 {[%clk 0:00:55]}  Re8 {[%clk 0:01:33]} 18. Qg3 {[%clk 0:00:47]}  Qf5 {[%clk 0:01:28]} 19. Nd6 {[%clk 0:00:38]}  Qf6 {[%clk 0:01:18]} 20. Nxe8 {[%clk 0:00:36]} 1-0


[Site "https://www.chess.com"]

[Event "Titled Tuesday Blitz July 05 Late 2022"]
[White "Rostovtsev, Dmitry"]
[Black "Ambartsumova, Karina"]
[WhiteFideId "34278320"]
[BlackFideId "4166299"]
[WhiteElo "2232"]
[BlackElo "2262"]
[Result "0-1"]
[Round "06"]
[TimeControl "180+1"]
[Date "2022.07.06"]
[WhiteClock "0:00:15"]
[BlackClock "0:00:09"]

1. c4 {[%clk 0:03:00]}  Nf6 {[%clk 0:02:56]} 2. Nc3 {[%clk 0:03:00]}  g6 {[%clk 0:02:56]} 3. e4 {[%clk 0:03:00]}  d6 {[%clk 0:02:56]} 4. d4 {[%clk 0:03:00]}  Bg7 {[%clk 0:02:57]} 5. Be2 {[%clk 0:03:00]}  O-O {[%clk 0:02:57]} 6. Be3 {[%clk 0:03:00]}  e5 {[%clk 0:02:52]} 7. d5 {[%clk 0:02:49]}  a5 {[%clk 0:02:47]} 8. g4 {[%clk 0:02:49]}  Na6 {[%clk 0:02:47]} 9. g5 {[%clk 0:02:48]}  Nd7 {[%clk 0:02:44]} 10. h4 {[%clk 0:02:48]}  Ndc5 {[%clk 0:02:35]} 11. h5 {[%clk 0:02:32]}  c6 {[%clk 0:02:35]} 12. Nf3 {[%clk 0:02:24]}  Qc7 {[%clk 0:02:23]} 13. Nd2 {[%clk 0:02:08]}  Bd7 {[%clk 0:02:09]} 14. hxg6 {[%clk 0:01:35]}  fxg6 {[%clk 0:02:07]} 15. f3 {[%clk 0:01:35]}  a4 {[%clk 0:02:04]} 16. a3 {[%clk 0:01:20]}  Qa5 {[%clk 0:01:56]} 17. Qc2 {[%clk 0:01:14]}  Rac8 {[%clk 0:01:37]} 18. Rh4 {[%clk 0:01:04]}  Rf7 {[%clk 0:01:21]} 19. O-O-O {[%clk 0:00:41]}  cxd5 {[%clk 0:01:11]} 20. exd5 {[%clk 0:00:36]}  Bf5 {[%clk 0:01:04]} 21. Nde4 {[%clk 0:00:36]}  Nb3+ {[%clk 0:01:03]} 22. Kb1 {[%clk 0:00:37]}  Nac5 {[%clk 0:00:58]} 23. Rdh1 {[%clk 0:00:33]}  Bh8 {[%clk 0:00:39]} 24. Ka2 {[%clk 0:00:29]}  Nd4 {[%clk 0:00:35]} 25. Bxd4 {[%clk 0:00:23]}  exd4 {[%clk 0:00:35]} 26. Nb5 {[%clk 0:00:24]}  Nxe4 {[%clk 0:00:30]} 27. fxe4 {[%clk 0:00:22]}  Qxb5 {[%clk 0:00:17]} 28. exf5 {[%clk 0:00:22]}  Rxf5 {[%clk 0:00:11]} 29. Rxh7 {[%clk 0:00:22]}  Bg7 {[%clk 0:00:12]} 30. Bd3 {[%clk 0:00:22]}  Qb3+ {[%clk 0:00:12]} 31. Qxb3 {[%clk 0:00:20]}  axb3+ {[%clk 0:00:12]} 32. Kxb3 {[%clk 0:00:21]}  Rf3 {[%clk 0:00:13]} 33. R7h3 {[%clk 0:00:17]}  Re3 {[%clk 0:00:11]} 34. Rxe3 {[%clk 0:00:15]}  dxe3 {[%clk 0:00:12]} 35. Bxg6 {[%clk 0:00:15]}  Bd4 {[%clk 0:00:09]} 36. Bf5 {[%clk 0:00:12]}  Rf8 {[%clk 0:00:09]} 37. Be6+ {[%clk 0:00:09]}  Kg7 {[%clk 0:00:09]} 38. Kc2 {[%clk 0:00:09]}  Rf2+ {[%clk 0:00:09]} 39. Kd3 {[%clk 0:00:10]}  Rd2+ {[%clk 0:00:08]} 40. Ke4 {[%clk 0:00:08]}  e2 {[%clk 0:00:08]} 41. Kf3 {[%clk 0:00:01]}  Rd1 {[%clk 0:00:07]} 42. Kxe2 {[%clk 0:00:02]}  Rxh1 {[%clk 0:00:07]} 43. b4 {[%clk 0:00:03]}  Rh4 {[%clk 0:00:07]} 44. Kd3 {[%clk 0:00:04]}  Bb2 {[%clk 0:00:07]} 45. a4 {[%clk 0:00:05]}  Ba3 {[%clk 0:00:07]} 46. b5 {[%clk 0:00:05]}  Bc5 {[%clk 0:00:07]} 47. a5 {[%clk 0:00:05]}  Rh1 {[%clk 0:00:06]} 48. Bc8 {[%clk 0:00:04]}  Ra1 {[%clk 0:00:05]} 49. a6 {[%clk 0:00:03]}  Ra3+ {[%clk 0:00:05]} 50. Kc2 {[%clk 0:00:03]}  bxa6 {[%clk 0:00:05]} 51. Kb2 {[%clk 0:00:03]}  Ra5 {[%clk 0:00:04]} 52. Bxa6 {[%clk 0:00:02]}  Kg6 {[%clk 0:00:05]} 53. Kb3 {[%clk 0:00:03]}  Kxg5 {[%clk 0:00:05]} 54. Bc8 {[%clk 0:00:03]}  Kf4 {[%clk 0:00:05]} 55. Ba6 {[%clk 0:00:04]}  Ke5 {[%clk 0:00:05]} 56. Bc8 {[%clk 0:00:04]}  Kd4 {[%clk 0:00:06]} 57. Ba6 {[%clk 0:00:05]}  Ra3+ {[%clk 0:00:06]} 58. Kb2 {[%clk 0:00:05]}  Kxc4 {[%clk 0:00:06]} 59. Bb7 {[%clk 0:00:06]}  Kxb5 {[%clk 0:00:06]} 60. Bc6+ {[%clk 0:00:07]}  Kb4 {[%clk 0:00:07]} 61. Kc2 {[%clk 0:00:08]}  Rc3+ {[%clk 0:00:07]} 62. Kb2 {[%clk 0:00:09]}  Rg3 {[%clk 0:00:07]} 63. Kc2 {[%clk 0:00:09]}  Rg2+ {[%clk 0:00:07]} 64. Kd3 {[%clk 0:00:10]}  Rg3+ {[%clk 0:00:08]} 65. Ke4 {[%clk 0:00:11]}  Rc3 {[%clk 0:00:07]} 66. Kf5 {[%clk 0:00:12]}  Kc4 {[%clk 0:00:08]} 67. Ke6 {[%clk 0:00:12]}  Kd4 {[%clk 0:00:08]} 68. Kd7 {[%clk 0:00:13]}  Re3 {[%clk 0:00:08]} 69. Kc7 {[%clk 0:00:14]}  Re5 {[%clk 0:00:08]} 70. Kb7 {[%clk 0:00:15]}  Rxd5 {[%clk 0:00:09]} 0-1


[Site "https://www.chess.com"]

[Event "Titled Tuesday Blitz July 05 Late 2022"]
[White "Sanal, Vahap"]
[Black "Dubov, Daniil"]
[WhiteFideId "6300545"]
[BlackFideId "24126055"]
[WhiteElo "2574"]
[BlackElo "2791"]
[Result "1-0"]
[Round "06"]
[TimeControl "180+1"]
[Date "2022.07.05"]
[WhiteClock "0:00:55"]
[BlackClock "0:00:13"]

1. Nf3 {[%clk 0:03:00]}  d5 {[%clk 0:02:59]} 2. b3 {[%clk 0:03:01]}  Nf6 {[%clk 0:02:56]} 3. Bb2 {[%clk 0:03:01]}  g6 {[%clk 0:02:56]} 4. g3 {[%clk 0:02:59]}  Bg7 {[%clk 0:02:53]} 5. Bg2 {[%clk 0:02:59]}  c5 {[%clk 0:02:53]} 6. O-O {[%clk 0:02:56]}  Nc6 {[%clk 0:02:54]} 7. e3 {[%clk 0:02:56]}  O-O {[%clk 0:02:51]} 8. Ne5 {[%clk 0:02:56]}  Bd7 {[%clk 0:02:49]} 9. Nxd7 {[%clk 0:02:55]}  Qxd7 {[%clk 0:02:48]} 10. d3 {[%clk 0:02:55]}  Ne8 {[%clk 0:02:36]} 11. c3 {[%clk 0:02:54]}  e6 {[%clk 0:02:32]} 12. Nd2 {[%clk 0:02:54]}  Rc8 {[%clk 0:02:29]} 13. Qe2 {[%clk 0:02:53]}  Nd6 {[%clk 0:02:28]} 14. f4 {[%clk 0:02:43]}  b5 {[%clk 0:02:19]} 15. e4 {[%clk 0:02:43]}  b4 {[%clk 0:02:16]} 16. e5 {[%clk 0:02:36]}  bxc3 {[%clk 0:02:14]} 17. Bxc3 {[%clk 0:02:37]}  Nb5 {[%clk 0:02:14]} 18. Bb2 {[%clk 0:02:38]}  Nbd4 {[%clk 0:02:14]} 19. Qf2 {[%clk 0:02:38]}  f6 {[%clk 0:02:13]} 20. exf6 {[%clk 0:02:35]}  Bxf6 {[%clk 0:02:14]} 21. Rad1 {[%clk 0:02:21]}  a5 {[%clk 0:02:10]} 22. Kh1 {[%clk 0:02:21]}  Rb8 {[%clk 0:02:04]} 23. Nf3 {[%clk 0:02:16]}  Nxf3 {[%clk 0:02:04]} 24. Bxf6 {[%clk 0:02:13]}  Rxf6 {[%clk 0:02:05]} 25. Qxf3 {[%clk 0:02:07]}  Qd6 {[%clk 0:02:01]} 26. Qg4 {[%clk 0:02:00]}  Nd4 {[%clk 0:01:58]} 27. Rde1 {[%clk 0:01:55]}  Kg7 {[%clk 0:01:58]} 28. Rf2 {[%clk 0:01:48]}  Rf7 {[%clk 0:01:54]} 29. h4 {[%clk 0:01:43]}  Kh8 {[%clk 0:01:38]} 30. Kh2 {[%clk 0:01:36]}  Ra8 {[%clk 0:01:28]} 31. Re5 {[%clk 0:01:34]}  a4 {[%clk 0:01:07]} 32. bxa4 {[%clk 0:01:34]}  Rxa4 {[%clk 0:01:08]} 33. Rb2 {[%clk 0:01:34]}  Ra8 {[%clk 0:01:07]} 34. Re1 {[%clk 0:01:17]}  Rfa7 {[%clk 0:01:02]} 35. Qg5 {[%clk 0:01:12]}  Qd8 {[%clk 0:00:35]} 36. Qe5+ {[%clk 0:01:10]}  Kg8 {[%clk 0:00:36]} 37. Reb1 {[%clk 0:01:09]}  Kf7 {[%clk 0:00:21]} 38. Rb7+ {[%clk 0:01:06]}  Qe7 {[%clk 0:00:19]} 39. Rxe7+ {[%clk 0:01:03]}  Rxe7 {[%clk 0:00:19]} 40. Rb8 {[%clk 0:00:55]}  Rea7 {[%clk 0:00:16]} 41. Rxa8 {[%clk 0:00:55]}  Rxa8 {[%clk 0:00:17]} 42. Qc7+ {[%clk 0:00:55]}  Kf6 {[%clk 0:00:15]} 43. Qxc5 {[%clk 0:00:56]}  Nf5 {[%clk 0:00:16]} 44. g4 {[%clk 0:00:56]}  Nxh4 {[%clk 0:00:15]} 45. Qc3+ {[%clk 0:00:54]}  Kf7 {[%clk 0:00:14]} 46. Qc7+ {[%clk 0:00:54]}  Kf6 {[%clk 0:00:13]} 47. g5+ {[%clk 0:00:54]}  Kf5 {[%clk 0:00:13]} 48. Bh3# {[%clk 0:00:55]} 1-0


[Site "https://www.chess.com"]

[Event "Titled Tuesday Blitz July 05 Late 2022"]
[White "Sargsyan, Anna M."]
[Black "Preotu, Razvan"]
[WhiteFideId "13308130"]
[BlackFideId "2613280"]
[WhiteElo "2271"]
[BlackElo "2407"]
[Result "1-0"]
[Round "06"]
[TimeControl "180+1"]
[Date "2022.07.05"]
[WhiteClock "0:00:13"]
[BlackClock "0:00:04"]

1. d4 {[%clk 0:03:00]}  Nf6 {[%clk 0:02:54]} 2. c4 {[%clk 0:03:00]}  g6 {[%clk 0:02:54]} 3. g3 {[%clk 0:03:00]}  c6 {[%clk 0:02:51]} 4. Bg2 {[%clk 0:02:59]}  d5 {[%clk 0:02:52]} 5. Nc3 {[%clk 0:03:00]}  Bg7 {[%clk 0:02:52]} 6. Nf3 {[%clk 0:03:01]}  O-O {[%clk 0:02:52]} 7. cxd5 {[%clk 0:03:01]}  cxd5 {[%clk 0:02:51]} 8. Ne5 {[%clk 0:03:01]}  Bf5 {[%clk 0:02:47]} 9. Qb3 {[%clk 0:02:56]}  Nc6 {[%clk 0:02:46]} 10. Nxc6 {[%clk 0:02:47]}  bxc6 {[%clk 0:02:47]} 11. O-O {[%clk 0:02:47]}  Qb6 {[%clk 0:02:19]} 12. Qa4 {[%clk 0:02:42]}  Ne4 {[%clk 0:02:16]} 13. Nxe4 {[%clk 0:02:39]}  dxe4 {[%clk 0:02:07]} 14. Be3 {[%clk 0:02:37]}  Qxb2 {[%clk 0:02:05]} 15. Qxc6 {[%clk 0:02:22]}  Qxe2 {[%clk 0:01:52]} 16. Rfe1 {[%clk 0:02:12]}  Qd3 {[%clk 0:01:32]} 17. a4 {[%clk 0:01:32]}  Rfc8 {[%clk 0:01:23]} 18. Qd5 {[%clk 0:01:27]}  e6 {[%clk 0:01:22]} 19. Qa5 {[%clk 0:01:20]}  Bxd4 {[%clk 0:01:14]} 20. Rad1 {[%clk 0:01:02]}  Qc3 {[%clk 0:01:03]} 21. Qa6 {[%clk 0:00:49]}  Bxe3 {[%clk 0:00:54]} 22. Rxe3 {[%clk 0:00:49]}  Qc2 {[%clk 0:00:54]} 23. Ree1 {[%clk 0:00:43]}  Rc4 {[%clk 0:00:36]} 24. Qb7 {[%clk 0:00:36]}  Rf8 {[%clk 0:00:31]} 25. h3 {[%clk 0:00:31]}  h5 {[%clk 0:00:30]} 26. a5 {[%clk 0:00:25]}  Rc7 {[%clk 0:00:27]} 27. Qb5 {[%clk 0:00:18]}  Qc5 {[%clk 0:00:19]} 28. Qa4 {[%clk 0:00:15]}  Rb8 {[%clk 0:00:17]} 29. a6 {[%clk 0:00:13]}  Rb4 {[%clk 0:00:16]} 30. Qe8+ {[%clk 0:00:11]}  Kg7 {[%clk 0:00:17]} 31. Rd8 {[%clk 0:00:11]}  Kf6 {[%clk 0:00:11]} 32. Qh8+ {[%clk 0:00:11]}  Kg5 {[%clk 0:00:05]} 33. h4+ {[%clk 0:00:12]}  Kg4 {[%clk 0:00:05]} 34. Qh6 {[%clk 0:00:13]}  f6 {[%clk 0:00:04]} 35. Qf4# {[%clk 0:00:13]} 1-0


[Site "https://www.chess.com"]

[Event "Titled Tuesday Blitz July 05 Late 2022"]
[White "Shimanov, Aleksandr"]
[Black "Ladopoulos, Dimitrios"]
[WhiteFideId "4198603"]
[BlackFideId "4239580"]
[WhiteElo "2605"]
[BlackElo "2195"]
[Result "1-0"]
[Round "06"]
[TimeControl "180+1"]
[Date "2022.07.05"]
[WhiteClock "0:02:33"]
[BlackClock "0:01:04"]

1. e4 {[%clk 0:03:00]}  e6 {[%clk 0:02:45]} 2. d4 {[%clk 0:02:54]}  d5 {[%clk 0:02:44]} 3. Nc3 {[%clk 0:02:55]}  Nf6 {[%clk 0:02:42]} 4. Bg5 {[%clk 0:02:54]}  dxe4 {[%clk 0:02:42]} 5. Nxe4 {[%clk 0:02:54]}  Be7 {[%clk 0:02:43]} 6. Nxf6+ {[%clk 0:02:53]}  Bxf6 {[%clk 0:02:43]} 7. Bxf6 {[%clk 0:02:53]}  Qxf6 {[%clk 0:02:44]} 8. Nf3 {[%clk 0:02:53]}  O-O {[%clk 0:02:32]} 9. Qd3 {[%clk 0:02:51]}  Rd8 {[%clk 0:02:29]} 10. O-O-O {[%clk 0:02:50]}  b6 {[%clk 0:02:21]} 11. Qe4 {[%clk 0:02:50]}  c6 {[%clk 0:02:20]} 12. Bd3 {[%clk 0:02:50]}  g6 {[%clk 0:02:14]} 13. h4 {[%clk 0:02:49]}  Ba6 {[%clk 0:02:05]} 14. h5 {[%clk 0:02:42]}  Bxd3 {[%clk 0:02:04]} 15. Rxd3 {[%clk 0:02:43]}  Na6 {[%clk 0:01:49]} 16. hxg6 {[%clk 0:02:42]}  hxg6 {[%clk 0:01:49]} 17. Ne5 {[%clk 0:02:40]}  c5 {[%clk 0:01:04]} 18. Rdh3 {[%clk 0:02:33]} 1-0


[Site "https://www.chess.com"]

[Event "Titled Tuesday Blitz July 05 Late 2022"]
[White "Shuvalova, Polina"]
[Black "Livaic, Leon"]
[WhiteFideId "24171760"]
[BlackFideId "14531534"]
[WhiteElo "2330"]
[BlackElo "2540"]
[Result "1/2-1/2"]
[Round "06"]
[TimeControl "180+1"]
[Date "2022.07.05"]
[WhiteClock "0:00:03"]
[BlackClock "0:00:04"]

1. e4 {[%clk 0:03:00]}  c5 {[%clk 0:02:57]} 2. Nf3 {[%clk 0:03:01]}  e6 {[%clk 0:02:57]} 3. g3 {[%clk 0:03:00]}  Nf6 {[%clk 0:02:54]} 4. Qe2 {[%clk 0:03:00]}  Nc6 {[%clk 0:02:51]} 5. Bg2 {[%clk 0:03:01]}  d6 {[%clk 0:02:51]} 6. O-O {[%clk 0:03:01]}  Be7 {[%clk 0:02:52]} 7. Rd1 {[%clk 0:03:01]}  O-O {[%clk 0:02:50]} 8. d4 {[%clk 0:03:01]}  cxd4 {[%clk 0:02:49]} 9. Nxd4 {[%clk 0:03:02]}  Nxd4 {[%clk 0:02:45]} 10. Rxd4 {[%clk 0:03:02]}  Qc7 {[%clk 0:02:46]} 11. c4 {[%clk 0:03:01]}  e5 {[%clk 0:02:18]} 12. Rd1 {[%clk 0:02:59]}  Bg4 {[%clk 0:02:17]} 13. f3 {[%clk 0:02:58]}  Be6 {[%clk 0:02:17]} 14. b3 {[%clk 0:02:59]}  a6 {[%clk 0:02:11]} 15. Be3 {[%clk 0:02:56]}  b5 {[%clk 0:02:08]} 16. Nd2 {[%clk 0:02:51]}  bxc4 {[%clk 0:01:38]} 17. Rac1 {[%clk 0:02:50]}  d5 {[%clk 0:01:30]} 18. exd5 {[%clk 0:02:44]}  Nxd5 {[%clk 0:01:30]} 19. Rxc4 {[%clk 0:02:41]}  Qa5 {[%clk 0:01:27]} 20. b4 {[%clk 0:01:44]}  Qxa2 {[%clk 0:01:16]} 21. Bc5 {[%clk 0:01:37]}  Rfd8 {[%clk 0:01:00]} 22. Bxe7 {[%clk 0:01:26]}  Nxe7 {[%clk 0:01:00]} 23. Re4 {[%clk 0:01:26]}  Rac8 {[%clk 0:00:42]} 24. Qe1 {[%clk 0:00:57]}  Rc2 {[%clk 0:00:37]} 25. Re2 {[%clk 0:00:57]}  Rdc8 {[%clk 0:00:29]} 26. Bf1 {[%clk 0:00:56]}  Qb2 {[%clk 0:00:20]} 27. Rxe5 {[%clk 0:00:45]}  Qxb4 {[%clk 0:00:18]} 28. Ne4 {[%clk 0:00:32]}  Qxe1 {[%clk 0:00:15]} 29. Rxe1 {[%clk 0:00:32]}  Nc6 {[%clk 0:00:15]} 30. Rc5 {[%clk 0:00:25]}  Nd4 {[%clk 0:00:13]} 31. Rxc2 {[%clk 0:00:21]}  Rxc2 {[%clk 0:00:12]} 32. Re3 {[%clk 0:00:17]}  g6 {[%clk 0:00:09]} 33. Bxa6 {[%clk 0:00:16]}  Rc1+ {[%clk 0:00:08]} 34. Kg2 {[%clk 0:00:16]}  Rc2+ {[%clk 0:00:07]} 35. Kg1 {[%clk 0:00:15]}  Kg7 {[%clk 0:00:05]} 36. Rd3 {[%clk 0:00:15]}  Ne2+ {[%clk 0:00:03]} 37. Kf1 {[%clk 0:00:15]}  Nc1 {[%clk 0:00:02]} 38. Re3 {[%clk 0:00:14]}  Ra2 {[%clk 0:00:03]} 39. Bb5 {[%clk 0:00:12]}  Nb3 {[%clk 0:00:02]} 40. Ng5 {[%clk 0:00:03]}  Nd4 {[%clk 0:00:02]} 41. Nxe6+ {[%clk 0:00:03]}  fxe6 {[%clk 0:00:03]} 42. Bc4 {[%clk 0:00:03]}  Rxh2 {[%clk 0:00:02]} 43. Bxe6 {[%clk 0:00:03]}  Kf6 {[%clk 0:00:02]} 44. Bd7 {[%clk 0:00:02]}  h5 {[%clk 0:00:02]} 45. f4 {[%clk 0:00:02]}  Rb2 {[%clk 0:00:01]} 46. Rd3 {[%clk 0:00:02]}  Nf5 {[%clk 0:00:01]} 47. Bxf5 {[%clk 0:00:02]}  Kxf5 {[%clk 0:00:02]} 48. Kg1 {[%clk 0:00:02]}  Kg4 {[%clk 0:00:02]} 49. Rd5 {[%clk 0:00:02]}  Kxg3 {[%clk 0:00:02]} 50. Rg5+ {[%clk 0:00:03]}  Kxf4 {[%clk 0:00:03]} 51. Rxg6 {[%clk 0:00:04]}  h4 {[%clk 0:00:03]} 52. Rh6 {[%clk 0:00:04]}  Kg5 {[%clk 0:00:03]} 53. Rh8 {[%clk 0:00:04]}  Kg4 {[%clk 0:00:03]} 54. Kh1 {[%clk 0:00:04]}  Kh3 {[%clk 0:00:03]} 55. Kg1 {[%clk 0:00:03]}  Rb1+ {[%clk 0:00:03]} 56. Kf2 {[%clk 0:00:03]}  Rb6 {[%clk 0:00:03]} 57. Kg1 {[%clk 0:00:04]}  Rg6+ {[%clk 0:00:03]} 58. Kh1 {[%clk 0:00:04]}  Rg2 {[%clk 0:00:03]} 59. Rxh4+ {[%clk 0:00:03]}  Kxh4 {[%clk 0:00:04]} 60. Kxg2 {[%clk 0:00:03]} 1/2-1/2


[Site "https://www.chess.com"]